fUST/lending_fUST_20251021
["ID","MTS","AMOUNT","RATE_DAILY","PERIOD"]
[391923716,1760994649880,-535.194147,0.00024298,7]
[391923717,1760994649890,-509.356734,0.00024298,7]
[391923718,1760994649899,-175.48176,0.00024298,7]
[391923719,1760994649908,-535.194147,0.00024298,7]
[391923720,1760994649918,-509.356734,0.00024298,7]
[391923721,1760994649927,-175.48176,0.00024298,7]
[391923722,1760994649937,-509.356734,0.00024298,7]
[391923723,1760994649946,-175.48176,0.00024298,7]
[391923724,1760994649955,-535.194147,0.00024298,7]
[391923725,1760994649965,-509.35673,0.00024298,7]
[391923726,1760994649974,-175.48176,0.00024298,7]
[391923727,1760994649984,-535.194147,0.00024298,7]
[391923728,1760994649993,-175.48176,0.00024298,7]
[391923729,1760994650003,-535.194147,0.00024298,7]
[391923730,1760994650012,-535.194147,0.00024298,7]
[391923731,1760994650021,-175.48176,0.00024298,7]
[391923732,1760994650031,-535.194147,0.00024298,7]
[391923733,1760994650040,-175.48176,0.00024298,7]
[391923734,1760994650050,-535.194148,0.00024298,7]
[391923735,1760994650059,-175.48176,0.00024298,7]
[391923736,1760994650068,-175.48176,0.00024298,7]
[391923737,1760994650078,-175.48176,0.00024298,7]
[391923738,1760994650087,-175.48176,0.00024298,7]
[391923739,1760994650097,-175.481753,0.00024298,7]
[391923740,1760994650106,-192.259718,0.00024298,7]
[391923741,1760994650116,-192.259718,0.00024298,7]
[391923742,1760994650125,-192.259718,0.00024298,7]
[391923743,1760994650135,-192.259718,0.00024298,7]
[391923744,1760994650145,-192.259718,0.00024298,7]
[391923745,1760994650156,-192.259718,0.00024298,7]
[391923746,1760994650166,-192.259718,0.00024298,7]
[391923747,1760994650175,-192.259718,0.00024298,7]
[391923748,1760994650185,-192.259718,0.00024298,7]
[391923749,1760994650195,-296.855512,0.00024298,7]
[391923750,1760994650205,-192.259718,0.00024298,7]
[391923751,1760994650218,-296.855512,0.00024298,7]
[391923752,1760994650227,-192.259718,0.00024298,7]
[391923753,1760994650236,-296.855512,0.00024298,7]
[391923754,1760994650245,-192.25972394,0.00024298,7]
[391923755,1760994650258,-296.855512,0.00024298,7]
[391923756,1760994650267,-296.855512,0.00024298,7]
[391923757,1760994650276,-296.855512,0.00024298,7]
[391923758,1760994650287,-296.855512,0.00024298,7]
[391923759,1760994650297,-296.855512,0.00024298,7]
[391923760,1760994650306,-296.855512,0.00024298,7]
[391923761,1760994650315,-151.0,0.00024298,7]
[391923762,1760994650325,-296.855512,0.00024298,7]
[391923763,1760994650334,-151.0,0.00024298,7]
[391923764,1760994650343,-296.855512,0.00024298,7]
[391923765,1760994650352,-151.0,0.00024298,7]
[391923766,1760994650361,-296.855504,0.00024298,7]
[391923767,1760994650371,-157.181817,0.00024298,7]
[391923768,1760994650379,-453.367066,0.00024298,7]
[391923769,1760994650389,-453.367066,0.00024298,7]
[391923770,1760994650398,-453.367066,0.00024298,7]
[391923771,1760994650407,-453.367066,0.00024298,7]
[391923772,1760994650416,-453.367066,0.00024298,7]
[391923773,1760994650425,-453.367066,0.00024298,7]
[391923774,1760994650435,-453.367066,0.00024298,7]
[391923775,1760994650444,-151.0,0.00024298,7]
[391923776,1760994650454,-453.367066,0.00024298,7]
[391923777,1760994650463,-151.0,0.00024298,7]
[391923778,1760994650472,-453.367066,0.00024298,7]
[391923779,1760994650482,-151.0,0.00024298,7]
[391923780,1760994650491,-453.367066,0.00024298,7]
[391923781,1760994650500,-453.367066,0.00024298,7]
[391923782,1760994650509,-453.36706,0.00024298,7]
[391923783,1760994650518,-166.540274,0.00024298,7]
[391923784,1760994650527,-166.540274,0.00024298,7]
[391923785,1760994650536,-166.540274,0.00024298,7]
[391923786,1760994650546,-166.540274,0.00024298,7]
[391923787,1760994650555,-166.540274,0.00024298,7]
[391923788,1760994650564,-166.540274,0.00024298,7]
[391923789,1760994650573,-166.540274,0.00024298,7]
[391923790,1760994650582,-166.540274,0.00024298,7]
[391923791,1760994650591,-166.540274,0.00024298,7]
[391923792,1760994650601,-166.540274,0.00024298,7]
[391923793,1760994650610,-166.540274,0.00024298,7]
[391923794,1760994650619,-166.540273,0.00024298,7]
[391923795,1760994650629,-151.0,0.00024298,7]
[391923796,1760994650638,-151.0,0.00024298,7]
[391923797,1760994650647,-151.0,0.00024298,7]
[391923798,1760994650656,-151.0,0.00024298,7]
[391923799,1760994650666,-151.0,0.00024298,7]
[391923800,1760994650675,-151.0,0.00024298,7]
[391923801,1760994650685,-151.0,0.00024298,7]
[391923802,1760994650695,-151.0,0.00024298,7]
[391923803,1760994650704,-273.850464,0.00024298,7]
[391923804,1760994650714,-151.0,0.00024298,7]
[391923805,1760994650724,-151.0,0.00024298,7]
[391923806,1760994650734,-500.0,0.00024298,7]
[391923807,1760994650743,-151.0,0.00024298,7]
[391923808,1760994650753,-151.0,0.00024298,7]
[391923809,1760994650762,-151.0,0.00024298,7]
[391923810,1760994650771,-151.0,0.00024298,7]
[391923811,1760994650780,-198.0,0.00024298,7]
[391923812,1760994650790,-151.0,0.00024298,7]
[391923813,1760994650799,-500.0,0.00024298,7]
[391923814,1760994650808,-205.281853,0.00024299,7]
[391923815,1760994650816,-160.224,0.00024299,2]
[391923816,1760994650825,-151.0,0.00024299,7]
[391923817,1760994650832,-235.1944,0.00024299,7]
[391923818,1760994650841,-171.404805,0.00024299,7]
[391923819,1760994650849,-151.0,0.00024299,7]
[391923820,1760994650858,-151.0,0.00024299,7]
[391923821,1760994650866,-161.137904,0.00024299,7]
[391923822,1760994650874,-151.0,0.00024299,7]
[391923823,1760994650883,-151.0,0.00024299,7]
[391923824,1760994650891,-151.0,0.00024299,7]
[391923825,1760994650899,-151.0,0.00024299,7]
[391923826,1760994650907,-151.0,0.00024299,7]
[391923827,1760994650917,-151.0,0.00024299,7]
[391923828,1760994650926,-151.0,0.00024299,7]
[391923829,1760994650934,-151.0,0.00024299,7]
[391923830,1760994650943,-151.0,0.00024299,7]
[391923831,1760994650951,-151.0,0.00024299,7]
[391923832,1760994650960,-151.0,0.00024299,7]
[391923833,1760994650969,-155.936109,0.00024299,7]
[391923834,1760994650977,-155.936109,0.00024299,7]
[391923835,1760994650986,-155.936109,0.00024299,7]
[391923836,1760994650994,-155.936109,0.00024299,7]
[391923837,1760994651003,-155.936109,0.00024299,7]
[391923838,1760994651011,-155.936109,0.00024299,7]
[391923839,1760994651019,-155.936109,0.00024299,7]
[391923840,1760994651028,-155.936109,0.00024299,7]
[391923841,1760994651037,-155.936109,0.00024299,7]
[391923842,1760994651046,-155.936109,0.00024299,7]
[391923843,1760994651055,-155.936109,0.00024299,7]
[391923844,1760994651065,-155.936109,0.00024299,7]
[391923845,1760994651075,-155.936109,0.00024299,7]
[391923846,1760994651084,-155.936109,0.00024299,7]
[391923847,1760994651094,-155.936109,0.00024299,7]
[391923848,1760994651103,-155.936109,0.00024299,7]
[391923849,1760994651112,-155.936109,0.00024299,7]
[391923850,1760994651264,-155.936109,0.00024299,7]
[391923851,1760994651275,-155.936109,0.00024299,7]
[391923852,1760994651285,-155.936102,0.00024299,7]
[391923853,1760994651295,-261.384855,0.00024299,7]
[391923854,1760994651304,-261.384855,0.00024299,7]
[391923855,1760994651314,-261.384855,0.00024299,7]
[391923856,1760994651323,-261.384855,0.00024299,7]
[391923857,1760994651332,-261.384855,0.00024299,7]
[391923858,1760994651342,-261.384855,0.00024299,7]
[391923859,1760994651352,-261.384855,0.00024299,7]
[391923860,1760994651361,-261.384855,0.00024299,7]
[391923861,1760994651371,-261.384855,0.00024299,7]
[391923862,1760994651382,-261.384855,0.00024299,7]
[391923863,1760994651391,-261.384855,0.00024299,7]
[391923864,1760994651400,-261.384855,0.00024299,7]
[391923865,1760994651409,-261.384855,0.00024299,7]
[391923866,1760994651418,-261.384855,0.00024299,7]
[391923867,1760994651428,-261.384855,0.00024299,7]
[391923868,1760994651437,-261.384855,0.00024299,7]
[391923869,1760994651447,-261.384855,0.00024299,7]
[391923870,1760994651456,-261.384855,0.00024299,7]
[391923871,1760994651466,-261.384855,0.00024299,7]
[391923872,1760994651476,-261.384857,0.00024299,7]
[391923873,1760994651486,-151.0,0.00024299,7]
[391923874,1760994651495,-151.0,0.00024299,7]
[391923875,1760994651504,-151.0,0.00024299,7]
[391923876,1760994651513,-151.0,0.00024299,7]
[391923877,1760994651523,-151.0,0.00024299,7]
[391923878,1760994651532,-151.0,0.00024299,7]
[391923879,1760994651542,-151.0,0.00024299,7]
[391923880,1760994651551,-151.0,0.00024299,7]
[391923881,1760994651560,-151.0,0.00024299,7]
[391923882,1760994651570,-207.056622,0.00024299,7]
[391923883,1760994651579,-402.9601108,0.000243,7]
[391923884,1760994651588,-151.0,0.000243,8]
[391923885,1760994651598,-151.0,0.000243,9]
[391923886,1760994651607,-151.0,0.000243,7]
[391923887,1760994651616,-151.0,0.000243,7]
[391923888,1760994651626,-151.0,0.000243,7]
[391923889,1760994651637,-151.0,0.000243,7]
[391923890,1760994651647,-151.0,0.000243,7]
[391923891,1760994651656,-151.0,0.000243,7]
[391923892,1760994651666,-151.0,0.000243,7]
[391923893,1760994651675,-151.0,0.000243,7]
[391923894,1760994651684,-151.0,0.000243,7]
[391923895,1760994651694,-151.0,0.000243,7]
[391923896,1760994651703,-151.0,0.000243,7]
[391923897,1760994651712,-151.0,0.000243,7]
[391923898,1760994651722,-151.0,0.000243,7]
[391923899,1760994651731,-151.0,0.000243,7]
[391923900,1760994651741,-151.0,0.000243,7]
[391923901,1760994651750,-151.0,0.000243,2]
[391923902,1760994651760,-151.0,0.000243,2]
[391923903,1760994651769,-276.07271824,0.000243,2]
[391923904,1760994651778,-500.0,0.000243,2]
[391923905,1760994651788,-186.61502716,0.000243,2]
[391923906,1760994651798,-151.48361571,0.000243,2]
[391923907,1760994651808,-151.0,0.000243,2]
[391923908,1760994651818,-198.35091737,0.000243,2]
[391923909,1760994651828,-500.0,0.000243,2]
[391923910,1760994651838,-500.0,0.000243,2]
[391923911,1760994651847,-151.0,0.000243,2]
[391923912,1760994651857,-151.0,0.000243,2]
[391923913,1760994651866,-151.1184974,0.000243,2]
[391923914,1760994651876,-392.7178133,0.000243,2]
[391923915,1760994651888,-392.7178133,0.000243,2]
[391923916,1760994651897,-392.7178133,0.000243,2]
[391923917,1760994651907,-330.0,0.000243,3]
[391923918,1760994651917,-152.0,0.000243,3]
[391923919,1760994651926,-330.0,0.000243,3]
[391923920,1760994651937,-330.0,0.000243,3]
[391923921,1760994651946,-500.0,0.00024309,2]
[391923922,1760994651956,-616.6905873,0.00024309,2]
[391923923,1760994651965,-500.0,0.00024309,2]
[391923924,1760994651975,-151.85739787,0.00024309,2]
[391923925,1760994651984,-151.0,0.00024328,2]
[391923926,1760994651993,-500.0,0.00024328,2]
[391923927,1760994652003,-500.0,0.00024328,2]
[391923928,1760994652013,-198.0,0.00024353,7]
[391923929,1760994652029,-151.0,0.00024353,7]
[391923930,1760994652039,-500.0,0.00024353,7]
[391923931,1760994652049,-151.0,0.00024353,7]
[391923932,1760994652058,-151.0,0.00024353,7]
[391923933,1760994652067,-151.0,0.00024353,7]
[391923934,1760994652078,-500.0,0.00024353,7]
[391923935,1760994652087,-151.0,0.00024355,2]
[391923936,1760994652096,-500.0,0.00024355,2]
[391923937,1760994652106,-151.0,0.00024355,2]
[391923938,1760994652115,-500.0,0.00024355,2]
[391923939,1760994652125,-500.0,0.00024355,2]
[391923940,1760994652136,-151.0,0.00024355,2]
[391923941,1760994652145,-151.0,0.00024355,2]
[391923942,1760994652154,-9016.3334532,0.00024361,2]
[391923943,1760994652164,-500.0,0.00024363,2]
[391923944,1760994652173,-500.0,0.00024363,2]
[391923945,1760994652183,-151.0,0.00024383,2]
[391923946,1760994652192,-500.0,0.00024383,2]
[391923947,1760994652202,-500.0,0.00024383,2]
[391923948,1760994652216,-159.97751647,0.00024383,7]
[391923949,1760994652226,-295.51441129,0.00024387,2]
[391923950,1760994652235,-337.39302501,0.00024387,2]
[391923951,1760994652245,-169.4676631,0.00024387,2]
[391923952,1760994652255,-210.7382943,0.00024391,2]
[391923953,1760994652265,-5028.5561612,0.00024391,2]
[391923954,1760994652275,-198.82343283,0.00024408,7]
[391923955,1760994652284,-495.44304722,0.00024408,7]
[391923956,1760994652295,-151.0,0.00024408,7]
[391923957,1760994652305,-151.0,0.00024408,7]
[391923958,1760994652314,-500.0,0.00024408,7]
[391923959,1760994652324,-151.0,0.0002441,2]
[391923960,1760994652334,-500.0,0.0002441,2]
[391923961,1760994652343,-151.0,0.0002441,2]
[391923962,1760994652353,-208.0,0.0002441,2]
[391923963,1760994652362,-453.0,0.0002441,2]
[391923964,1760994652371,-151.0,0.0002441,2]
[391923965,1760994652383,-151.0,0.0002441,2]
[391923966,1760994652393,-500.0,0.00024418,2]
[391923967,1760994652402,-500.0,0.00024418,2]
[391923968,1760994652412,-151.0,0.00024437,2]
[391923969,1760994652421,-500.0,0.00024437,2]
[391923970,1760994652431,-500.0,0.00024437,2]
[391923971,1760994652440,-168.0,0.00024439,2]
[391923972,1760994652449,-3233.94116954,0.00024455,2]
[391923973,1760994652459,-151.0,0.00024462,7]
[391923974,1760994652468,-224.22324818,0.00024462,7]
[391923975,1760994652477,-547.0,0.00024462,7]
[391923976,1760994652487,-151.0,0.00024464,2]
[391923977,1760994652496,-500.0,0.00024464,2]
[391923978,1760994652505,-198.0,0.00024464,2]
[391923979,1760994652515,-151.0,0.00024464,2]
[391923980,1760994652524,-151.0,0.00024464,2]
[391923981,1760994652533,-500.0,0.00024473,2]
[391923982,1760994652543,-500.0,0.00024473,2]
[391923983,1760994652552,-1000.0,0.00024477,2]
[391923984,1760994652562,-1000.0,0.00024477,2]
[391923985,1760994652571,-1000.0,0.00024477,2]
[391923986,1760994652580,-1000.0,0.00024477,2]
[391923987,1760994652590,-1000.0,0.00024477,2]
[391923988,1760994652600,-1000.0,0.00024477,2]
[391923989,1760994652609,-1000.0,0.00024477,2]
[391923990,1760994652619,-1000.0,0.00024477,2]
[391923991,1760994652628,-1000.0,0.00024477,2]
[391923992,1760994652638,-1000.0,0.00024477,2]
[391923993,1760994652648,-1000.0,0.00024477,2]
[391923994,1760994652657,-1000.0,0.00024477,2]
[391923995,1760994652667,-1000.0,0.00024477,2]
[391923996,1760994652676,-1000.0,0.00024477,2]
[391923997,1760994652686,-1000.0,0.00024477,2]
[391923998,1760994652695,-1000.0,0.00024477,2]
[391923999,1760994652705,-1000.0,0.00024477,2]
[391924000,1760994652714,-1000.0,0.00024477,2]
[391924001,1760994652724,-1000.0,0.00024477,2]
[391924002,1760994652733,-677.6305,0.00024477,2]
[391924003,1760994652742,-151.0,0.00024492,2]
[391924004,1760994652752,-500.0,0.00024492,2]
[391924005,1760994652762,-214.89325771,0.00024517,7]
[391924006,1760994652771,-199.38589367,0.00024519,2]
[391924007,1760994652780,-415.79501055,0.00024519,2]
[391924008,1760994652790,-245.0,0.00024519,2]
[391924009,1760994652799,-151.0,0.00024519,2]
[391924010,1760994652808,-500.0,0.00024528,2]
[391924011,1760994652818,-500.0,0.00024528,2]
[391924012,1760994652827,-212.85092125,0.00024547,2]
[391924013,1760994652837,-500.0,0.00024547,2]
[391924014,1760994652846,-402.0,0.00024566,2]
[391924015,1760994652856,-160.0,0.00024571,2]
[391924016,1760994652865,-151.0,0.00024574,2]
[391924017,1760994652875,-500.0,0.00024583,2]
[391924018,1760994652884,-500.0,0.00024583,2]
[391924019,1760994652894,-500.0,0.00024602,2]
[391924020,1760994652903,-500.0,0.00024637,2]
[391924021,1760994652914,-500.0,0.00024637,2]
[391924022,1760994652924,-168.0,0.0002465,2]
[391924023,1760994652934,-500.0,0.00024657,2]
[391924024,1760994652944,-151.0,0.00024658,7]
[391924025,1760994652955,-151.0,0.00024658,7]
[391924026,1760994652964,-151.0,0.00024658,7]
[391924027,1760994652973,-151.0,0.00024658,7]
[391924028,1760994652983,-151.0,0.00024658,7]
[391924029,1760994652992,-151.0,0.00024658,7]
[391924030,1760994653002,-151.0,0.00024658,7]
[391924031,1760994653012,-151.0,0.00024658,7]
[391924032,1760994653022,-151.0,0.00024658,7]
[391924033,1760994653031,-151.0,0.00024658,7]
[391924034,1760994653041,-151.0,0.00024658,7]
[391924035,1760994653051,-151.0,0.00024658,7]
[391924036,1760994653060,-151.0,0.00024658,7]
[391924037,1760994653070,-151.0,0.00024658,7]
[391924038,1760994653079,-151.0,0.00024658,7]
[391924039,1760994653089,-151.0,0.00024658,7]
[391924040,1760994653099,-151.0,0.00024658,7]
[391924041,1760994653108,-181.110908,0.00024658,7]
[391924042,1760994653119,-500.0,0.00024692,2]
[391924043,1760994653129,-305.26391331,0.00024692,2]
[391924044,1760994653139,-175.45932056,0.00024699,2]
[391924045,1760994653149,-168.0,0.00024708,2]
[391924046,1760994653159,-500.0,0.00024711,2]
[391924047,1760994653169,-500.0,0.00024721,2]
[391924048,1760994653179,-1000.0,0.00024721,2]
[391924049,1760994653188,-850.70958409,0.00024721,2]
[391924050,1760994653198,-1000.0,0.00024721,2]
[391924051,1760994653209,-1000.0,0.00024721,2]
[391924052,1760994653219,-1000.0,0.00024721,2]
[391924053,1760994653228,-638.35642691,0.00024721,2]
[391924054,1760994653237,-7216.75710751,0.00024721,2]
[391924055,1760994653247,-500.0,0.00024747,2]
[391924056,1760994653258,-168.0,0.00024757,2]
[391924057,1760994653267,-500.0,0.00024766,2]
[391924058,1760994653276,-8136.8699248,0.000248,2]
[391924059,1760994653288,-500.0,0.00024802,2]
[391924060,1760994653298,-3233.94116954,0.00024812,2]
[391924061,1760994653307,-1000.0,0.00024821,2]
[391924062,1760994653317,-503.74782024,0.00024821,2]
[391924063,1760994653326,-1000.0,0.00024821,2]
[391924064,1760994653335,-1000.0,0.00024821,2]
[391924065,1760994653344,-1030.89254654,0.00024821,2]
[391924066,1760994653354,-500.0,0.00024821,2]
[391924067,1760994653363,-500.0,0.00024857,2]
[391924068,1760994653372,-150.0,0.00024873,2]
[391924069,1760994653382,-150.0,0.00024873,2]
[391924070,1760994653391,-150.0,0.00024873,2]
[391924071,1760994653400,-208.80434357,0.00024878,4]
[391924072,1760994653410,-402.9601108,0.000249,7]
[391924073,1760994653420,-78927.618114,0.000249,2]
[391924074,1760994653429,-500.0,0.00024911,2]
[391924075,1760994653439,-163.2381289,0.00024931,2]
[391924076,1760994653448,-298.5517163,0.00024931,2]
[391924077,1760994653458,-153.0,0.00024931,2]
[391924078,1760994653467,-190.1312825,0.00024931,2]
[391924079,1760994653477,-608.0657712,0.00024931,2]
[391924080,1760994653487,-298.5517163,0.00024931,2]
[391924081,1760994653496,-190.1312825,0.00024931,2]
[391924082,1760994653634,-163.2381289,0.00024931,2]
[391924083,1760994653658,-153.0,0.00024931,2]
[391924084,1760994653667,-589.7208673,0.00024931,2]
[391924085,1760994653677,-298.5517163,0.00024931,2]
[391924086,1760994653687,-158.0900427,0.00024931,2]
[391924087,1760994653697,-589.7208673,0.00024931,2]
[391924088,1760994653707,-153.0,0.00024931,2]
[391924089,1760994653716,-188.8151573,0.00024931,2]
[391924090,1760994653726,-167.396397,0.00024931,2]
[391924091,1760994653736,-153.0,0.00024931,2]
[391924092,1760994653746,-589.7208673,0.00024931,2]
[391924093,1760994653756,-500.0,0.00024966,2]
[391924094,1760994653765,-21219.98746283,0.00025,2]
[391924095,1760994653775,-163.0,0.00025,7]
[391924096,1760994653784,-500.0,0.00025021,2]
[391924097,1760994653794,-514.79249431,0.00025076,2]
[391924098,1760994653804,-300.0,0.00025081,20]
[391924099,1760994653813,-300.0,0.00025081,20]
[391924100,1760994653823,-300.0,0.00025081,20]
[391924101,1760994653833,-300.0,0.00025081,20]
[391924102,1760994653843,-300.0,0.00025081,20]
[391924103,1760994653852,-300.0,0.00025081,20]
[391924104,1760994653862,-300.0,0.00025081,20]
[391924105,1760994653872,-300.0,0.00025081,20]
[391924106,1760994653881,-300.0,0.00025081,20]
[391924107,1760994653891,-300.0,0.00025081,20]
[391924108,1760994653900,-300.0,0.00025081,20]
[391924109,1760994653910,-300.0,0.00025081,20]
[391924110,1760994653919,-300.0,0.00025081,20]
[391924111,1760994653928,-300.0,0.00025081,20]
[391924112,1760994653938,-300.0,0.00025081,20]
[391924113,1760994653948,-600.0,0.00025091,20]
[391924114,1760994653958,-260.0,0.00025119,2]
[391924115,1760994653967,-168.0,0.00025128,2]
[391924116,1760994653977,-3233.94116954,0.00025168,2]
[391924117,1760994653988,-199.0,0.00025205,7]
[391924118,1760994653999,-1500.0,0.00025268,2]
[391924119,1760994654012,-1500.0,0.00025268,2]
[391924120,1760994654022,-1500.0,0.00025268,2]
[391924121,1760994654033,-1500.0,0.00025268,2]
[391924122,1760994654048,-168.0,0.00025286,2]
[391924123,1760994654061,-198.34531889,0.00025299,2]
[391924124,1760994654086,-1500.0,0.00025368,2]
[391924125,1760994654098,-1500.0,0.00025368,2]
[391924126,1760994654108,-168.0,0.00025399,2]
[391924127,1760994654118,-250.0,0.00025421,2]
[391924128,1760994654128,-300.0,0.00025421,2]
[391924129,1760994654139,-250.0,0.00025421,2]
[391924130,1760994654149,-150.0,0.00025451,2]
[391924131,1760994654159,-1188.0,0.00025458,2]
[391924132,1760994654170,-199.0,0.00025479,8]
[391924133,1760994654180,-21686.84,0.000255,7]
[391924134,1760994654191,-3233.94116954,0.00025524,2]
[391924135,1760994654202,-160.0,0.00025553,7]
[391924136,1760994654218,-1000.0,0.00025554,2]
[391924137,1760994654228,-1148.96,0.00025558,3]
[391924138,1760994654238,-750.36,0.00025558,3]
[391924139,1760994654248,-375.18,0.00025558,3]
[391924140,1760994654259,-540.44,0.00025559,3]
[391924141,1760994654269,-1209.92,0.00025559,3]
[391924142,1760994654279,-604.96,0.00025559,3]
[391924143,1760994654291,-302.48,0.00025559,3]
[391924144,1760994654302,-150.0,0.00025563,2]
[391924145,1760994654313,-280.44175678,0.00025563,2]
[391924146,1760994654323,-168.0,0.00025568,2]
[391924147,1760994654334,-168.0,0.00025624,2]
[391924148,1760994654344,-426.27836242,0.00025642,4]
[391924149,1760994654353,-156.588332,0.0002565,2]
[391924150,1760994654363,-156.588327,0.0002565,2]
[391924151,1760994654373,-360.0,0.00025667,2]
[391924152,1760994654384,-385.15767923,0.00025704,2]
[391924153,1760994654393,-908.39416524,0.00025712,2]
[391924154,1760994654404,-1188.0,0.00025783,2]
[391924155,1760994654417,-1188.0,0.00025799,2]
[391924156,1760994654429,-1524.87285329,0.00025816,2]
[391924157,1760994654440,-2000.0,0.00025816,2]
[391924158,1760994654450,-2000.0,0.00025816,2]
[391924159,1760994654460,-335.9880288,0.00025816,2]
[391924160,1760994654470,-304.73675179,0.00025852,2]
[391924161,1760994654481,-221.23131723,0.00025899,2]
[391924162,1760994654491,-520.68978413,0.00025916,2]
[391924163,1760994654502,-2000.0,0.00025916,2]
[391924164,1760994654514,-350.0,0.00025968,2]
[391924165,1760994654525,-450.0,0.00025968,2]
[391924166,1760994654536,-350.0,0.00025968,2]
[391924167,1760994654546,-260.0,0.00026027,30]
[391924168,1760994654556,-1584.0,0.00026095,2]
[391924169,1760994654566,-1000.0,0.000261,2]
[391924170,1760994654576,-420.0,0.00026208,2]
[391924171,1760994654586,-460.0,0.00026215,2]
[391924172,1760994654595,-664.0,0.00026218,7]
[391924173,1760994654605,-504.7951622,0.00026299,2]
[391924174,1760994654616,-1188.0,0.000263,7]
[391924175,1760994654626,-999.443,0.00026319,2]
[391924176,1760994654638,-632.0,0.00026319,2]
[391924177,1760994654648,-2163.0,0.00026319,2]
[391924178,1760994654657,-1007.1927802,0.00026364,2]
[391924179,1760994654667,-1027.64625486,0.00026364,2]
[391924180,1760994654678,-4204.0,0.00026387,2]
[391924181,1760994654687,-2500.0,0.00026464,2]
[391924182,1760994654697,-439.74002463,0.00026491,2]
[391924183,1760994654707,-244.11731556,0.00026499,2]
[391924184,1760994654716,-189.82742202,0.00026516,2]
[391924185,1760994654726,-450.0,0.00026516,2]
[391924186,1760994654736,-600.0,0.00026516,2]
[391924187,1760994654745,-5000.0,0.00026554,2]
[391924188,1760994654755,-154.1721486,0.00026574,2]
[391924189,1760994654765,-158.921942,0.00026624,2]
[391924190,1760994654775,-650.362014,0.00026676,2]
[391924191,1760994654784,-7216.7571075,0.00026681,2]
[391924192,1760994654794,-155.0,0.00026729,2]
[391924193,1760994654804,-560.0,0.00026763,2]
[391924194,1760994654813,-21686.84,0.000268,7]
[391924195,1760994654824,-200.0,0.000269,2]
[391924196,1760994654834,-1188.0,0.00026939,7]
[391924197,1760994654850,-500.0,0.00026973,2]
[391924198,1760994654860,-500.0,0.00026973,2]
[391924199,1760994654871,-212.0,0.00026986,14]
[391924200,1760994654882,-664.0,0.00026991,2]
[391924201,1760994654892,-1188.0,0.00026996,2]
[391924202,1760994654902,-177969.33845167,0.00027,2]
[391924203,1760994655300,-740659.27174674,0.00027,2]
[391924204,1760994655417,-302.0,0.00027,2]
[391924205,1760994655428,-5000.04050308,0.00027,2]
[391924206,1760994656287,-3e-08,0.00024188,10]
[391924207,1760994657604,-16354.06479828,0.00024099,2]
[391924208,1760994657620,-1579.03999997,0.00024188,10]
[391924209,1760994657635,-151.0,0.00024198,7]
[391924210,1760994657649,-151.0,0.00024198,7]
[391924211,1760994657663,-223.793256,0.00024198,7]
[391924212,1760994657677,-151.0,0.00024198,7]
[391924213,1760994657692,-151.0,0.00024198,7]
[391924214,1760994657706,-151.0,0.00024198,7]
[391924215,1760994657720,-151.0,0.00024198,7]